bitfinex-derivatives/quotes_SOLF0:USTF0_20241027
["timestamp","ask_amount","ask_price","bid_price","bid_amount"]
[1730062922674,2.8276,177.01,176.99,9.77998066]
[1730062923572,2.8276,177.01,176.98,6.8281]
[1730062923768,6.95208066,177.04,176.99,6.95208066]
[1730062923973,2.8277,177.01,176.99,6.95208066]
[1730062924577,6.95208066,177.03,176.98,2.828]
[1730062924781,8.0396,177.1,176.96,6.95208066]
[1730062924782,2.8279,177.0,176.96,6.95208066]
[1730062925674,2.8279,177.0,176.97,2.8282]
[1730062926072,2.8279,177.0,176.95,6.3791]
[1730062926276,2.8279,177.0,176.98,2.8281]
[1730062930082,2.8277,177.01,176.98,2.8281]
[1730062935780,2.8277,177.01,176.99,6.95208066]
[1730062937281,2.8277,177.01,176.98,9.78018066]
[1730062943385,2.8277,177.01,176.98,6.95208066]
[1730062943588,2.8277,177.01,176.99,9.77998066]
[1730062944685,6.95208066,177.04,176.99,6.95208066]
[1730062944984,4.0,177.06,177.03,6.95208066]
[1730062945180,10.95208066,177.09,177.03,6.95208066]
[1730062946282,2.8269,177.06,177.03,9.77928066]
[1730062947983,2.8268,177.07,177.04,9.77908066]
[1730062948182,2.8268,177.07,177.06,6.95208066]
[1730062950487,2.8265,177.09,177.06,9.77878066]
[1730062950792,2.8265,177.09,177.07,6.95208066]
[1730062957692,2.8265,177.09,177.06,9.77878066]
[1730062966304,2.8265,177.09,177.07,2.8266]
[1730062978115,2.8265,177.09,177.06,6.95208066]
[1730062978320,2.8265,177.09,177.06,9.77878066]
[1730062986421,2.8265,177.09,177.06,2.8267]
[1730062986622,2.8265,177.09,177.07,6.95208066]
[1730062989923,2.8265,177.09,177.07,9.77878066]
[1730062990520,2.8265,177.09,177.07,6.95208066]
[1730063001241,4.0,177.12,177.07,6.95208066]
[1730063001947,2.8263,177.1,177.07,9.77868066]
[1730063002338,2.8264,177.09,177.07,9.77868066]
[1730063004246,6.95208066,177.08,176.94,54.94]
[1730063004454,6.95208066,177.06,177.0,6.95208066]
[1730063006041,2.8271,177.05,177.02,2.8274]
[1730063011247,2.8272,177.04,177.02,2.8274]
[1730063011453,6.95208066,177.06,177.02,2.8274]
[1730063011843,2.8271,177.05,177.02,2.8274]
[1730063014047,2.8271,177.05,177.03,6.95208066]
[1730063014244,3.98,177.1,177.04,6.95208066]
[1730063014551,3.98,177.1,177.07,6.95208066]
[1730063015352,2.8265,177.08,177.07,6.95208066]
[1730063015748,3.98,177.1,177.07,6.95208066]
[1730063016049,6.8062,177.1,177.07,6.95208066]
[1730063016251,2.8262,177.1,177.07,6.95208066]
[1730063017251,2.8262,177.1,177.07,9.77868066]
[1730063020444,2.8262,177.1,177.03,3.98]
[1730063020648,2.8264,177.09,177.07,6.95208066]
[1730063024354,2.8264,177.09,177.04,2.8271]
[1730063024355,2.8268,177.07,177.04,2.8271]
[1730063024548,6.95208066,177.09,176.95,9.2462]
[1730063024549,6.95208066,177.09,177.03,6.95208066]
[1730063024751,3.98,177.13,177.03,6.95208066]
[1730063024953,2.8267,177.07,177.04,2.827]
[1730063027059,2.8267,177.07,177.05,6.95208066]
[1730063027249,3.98,177.13,177.06,9.77888066]
[1730063027763,10.93208066,177.13,177.08,6.95208066]
[1730063028662,2.8263,177.1,177.08,6.95208066]
[1730063028858,10.93208066,177.13,177.08,6.95208066]
[1730063029868,2.8263,177.09,177.08,6.95208066]
[1730063030052,2.8263,177.09,177.07,6.95208066]
[1730063030653,2.8263,177.09,177.06,2.8267]
[1730063030851,2.8266,177.08,177.05,9.77908066]
[1730063036765,2.8263,177.1,177.07,9.77868066]
[1730063037165,3.98,177.12,177.07,6.95208066]
[1730063037468,10.93208066,177.12,177.07,6.95208066]
[1730063038379,2.8264,177.09,177.07,6.95208066]
[1730063040171,6.95208066,177.08,177.03,10.93208066]
[1730063040765,2.8269,177.06,177.03,13.75928066]
[1730063046269,2.8269,177.06,177.03,6.8072]
[1730063046470,2.8269,177.06,177.03,9.77928066]
[1730063048268,2.8269,177.06,177.05,6.95208066]
[1730063048875,185.3746662,177.14,177.05,6.95208066]
[1730063049190,3.98,177.13,177.08,6.95208066]
[1730063049972,2.8263,177.1,177.08,6.95208066]
[1730063052175,10.93208066,177.13,177.08,6.95208066]
[1730063052383,6.95208066,177.09,177.04,10.93208066]
[1730063052569,6.95208066,177.09,177.04,6.95208066]
[1730063053171,2.8266,177.08,177.04,9.77918066]
[1730063053375,6.95208066,177.09,177.04,9.77918066]
[1730063053687,2.8268,177.07,177.04,9.77918066]
[1730063061086,2.8268,177.07,177.05,6.95208066]
[1730063063882,2.8268,177.07,177.04,2.8271]
[1730063063883,2.8263,177.1,177.07,2.8266]
[1730063064089,2.8263,177.1,177.08,6.95208066]
[1730063065383,10.93208066,177.12,177.07,2.8266]
[1730063065589,2.8263,177.09,177.07,2.8266]
[1730063066087,2.8263,177.09,177.06,9.77878066]
[1730063077098,2.8262,177.1,177.07,2.8266]
[1730063077895,2.8268,177.07,177.03,2.8272]
[1730063078201,2.8268,177.07,177.03,6.95208066]
[1730063079303,2.8268,177.07,177.04,2.8271]
[1730063081109,2.827,177.05,177.02,2.8273]
[1730063081304,2.827,177.05,177.03,6.95208066]
[1730063082411,2.8269,177.06,177.03,6.95208066]
[1730063083501,6.95208066,177.09,177.03,6.95208066]
[1730063083809,2.8266,177.08,177.04,9.77908066]
[1730063087510,2.8266,177.08,177.06,6.95208066]
[1730063089119,2.8266,177.08,177.04,2.827]
[1730063089309,2.8266,177.08,177.05,6.95208066]
[1730063089819,2.8267,177.07,177.05,6.95208066]
[1730063097320,6.95208066,177.09,177.05,6.95208066]
[1730063097719,6.95208066,177.11,177.05,6.95208066]
[1730063098324,2.8266,177.08,177.05,9.77898066]
[1730063098519,2.8266,177.08,177.05,6.95208066]
[1730063098825,2.8267,177.08,177.05,6.95208066]
[1730063099221,2.8262,177.11,177.07,2.8266]
[1730063099527,2.8262,177.11,177.09,6.95208066]
[1730063100019,2.8258,177.13,177.1,6.95208066]
[1730063100222,2.8258,177.13,177.12,6.95208066]
[1730063100421,3.98,177.17,177.12,6.95208066]
[1730063100714,3.98,177.17,177.13,6.95208066]
[1730063101222,2.8256,177.14,177.13,6.95208066]
[1730063102124,3.98,177.18,177.13,6.95208066]
[1730063103026,2.8256,177.14,177.13,6.95208066]
[1730063108031,2.8256,177.14,177.12,6.95208066]
[1730063109835,176.26137584,177.19,177.13,6.95208066]
[1730063110037,176.26137584,177.19,177.12,3.98]
[1730063110038,176.26137584,177.19,177.16,6.95208066]
[1730063110337,2.825,177.18,177.16,6.95208066]
[1730063111334,3.98,177.22,177.16,6.95208066]
[1730063111522,6.95208066,177.23,177.17,6.95208066]
[1730063111836,5.1769,177.26,177.19,6.95208066]
[1730063112038,2.8244,177.22,177.19,6.95208066]
[1730063112826,2.79524618,177.27,177.19,6.95208066]
[1730063112827,2.8241,177.23,177.21,6.95208066]
[1730063113032,6.95208066,177.26,177.21,6.95208066]
[1730063113631,2.8243,177.23,177.21,6.95208066]
[1730063115542,6.95208066,177.26,177.21,6.95208066]
[1730063117037,3.98,177.28,177.21,6.95208066]
[1730063117342,6.95208066,177.25,177.21,6.95208066]
[1730063117845,2.8241,177.23,177.21,6.95208066]
[1730063118139,6.95208066,177.25,177.21,6.95208066]
[1730063119339,2.8241,177.24,177.21,6.95208066]
[1730063119743,2.8241,177.23,177.21,6.95208066]
[1730063121547,10.93208066,177.29,177.22,6.95208066]
[1730063121741,5.1902,177.31,177.24,6.95208066]
[1730063121936,6.95208066,177.29,177.24,6.95208066]
[1730063122136,2.8236,177.27,177.24,6.95208066]
[1730063122336,1.2102,177.31,177.24,6.95208066]
[1730063122741,6.95208066,177.29,177.24,6.95208066]
[1730063125054,2.8237,177.26,177.24,6.95208066]
[1730063133047,186.33721584,177.36,177.25,6.95208066]
[1730063133246,6.95208066,177.34,177.29,6.95208066]
[1730063134055,2.8224,177.34,177.3,6.95208066]
[1730063134349,10.93208066,177.36,177.3,6.95208066]
[1730063134546,6.95208066,177.35,177.3,6.95208066]
[1730063134748,2.8227,177.32,177.3,6.95208066]
[1730063135158,1.2425,177.41,177.3,6.95208066]
[1730063135350,4.82829009,177.4,177.32,6.95208066]
[1730063135549,6.95208066,177.37,177.32,6.95208066]
[1730063135956,2.8225,177.34,177.32,6.95208066]
[1730063136156,6.95208066,177.37,177.32,6.95208066]
[1730063136544,3.98,177.4,177.32,6.95208066]
[1730063136750,6.95208066,177.38,177.32,6.95208066]
[1730063136947,2.8221,177.36,177.34,6.95208066]
[1730063137850,2.8226,177.33,177.3,2.372]
[1730063138054,2.8226,177.33,177.3,9.32408066]
[1730063141356,2.8228,177.32,177.3,6.95208066]
[1730063143957,6.95208066,177.35,177.3,6.95208066]
[1730063144157,2.8226,177.33,177.3,6.95208066]
[1730063149268,2.8226,177.33,177.29,2.8232]
[1730063149465,2.8226,177.33,177.29,9.77528066]
[1730063152869,2.8227,177.32,177.29,9.77528066]
[1730063153775,2.8229,177.31,177.27,2.8234]
[1730063154072,6.95208066,177.34,177.27,10.93208066]
[1730063155070,2.8229,177.31,177.27,10.93208066]
[1730063155871,2.8229,177.31,177.27,6.95208066]
[1730063159160,2.8229,177.31,177.29,6.95208066]
[1730063160566,6.95208066,177.35,177.29,6.95208066]
[1730063161167,2.8228,177.32,177.29,6.95208066]
[1730063162169,2.8228,177.32,177.31,6.95208066]
[1730063163265,2.8228,177.32,177.3,6.95208066]
[1730063170877,6.95208066,177.35,177.3,6.95208066]
[1730063171180,2.8227,177.32,177.3,6.95208066]
[1730063175479,2.8227,177.32,177.28,2.8233]
[1730063175679,2.8227,177.32,177.29,6.95208066]
[1730063176381,2.8227,177.32,177.28,2.8233]
[1730063176581,2.8227,177.32,177.29,6.95208066]
[1730063180986,2.8225,177.33,177.29,9.77518066]
[1730063184985,2.8225,177.33,177.29,2.8231]
[1730063185181,2.8225,177.33,177.29,9.77518066]
[1730063186585,6.95208066,177.32,177.21,2.5018]
[1730063186792,6.95208066,177.3,177.22,3.96]
[1730063186991,6.95208066,177.29,177.24,6.95208066]
[1730063187695,2.8235,177.27,177.24,6.95208066]
[1730063187991,6.95208066,177.29,177.24,6.95208066]
[1730063188192,2.8234,177.28,177.24,6.95208066]
[1730063189896,2.8234,177.28,177.24,9.77598066]
[1730063190487,6.95208066,177.29,177.24,9.77598066]
[1730063190695,2.8235,177.27,177.24,9.77598066]
[1730063190993,6.95208066,177.28,177.22,13.73618066]
[1730063191802,6.95208066,177.28,177.22,10.91208066]
[1730063191997,2.8236,177.27,177.23,2.8241]
[1730063193894,2.8236,177.26,177.23,2.8241]
[1730063195200,2.8236,177.26,177.24,6.95208066]
[1730063196599,2.8236,177.26,177.25,6.95208066]
[1730063197194,3.96,177.32,177.25,6.95208066]
[1730063197394,3.96,177.32,177.29,6.95208066]
[1730063197589,210.61513968,177.35,177.29,6.95208066]
[1730063197895,221.52722034,177.35,177.29,6.95208066]
[1730063198300,2.8225,177.34,177.29,6.95208066]
[1730063198594,221.52722034,177.35,177.29,6.95208066]
[1730063199305,214.57513968,177.35,177.3,6.95208066]
[1730063199904,2.8225,177.33,177.3,6.95208066]
[1730063200296,214.57513968,177.35,177.3,6.95208066]
[1730063200700,2.8225,177.34,177.3,6.95208066]
[1730063200892,214.57513968,177.35,177.31,2.8228]
[1730063201192,217.39743968,177.35,177.3,6.95208066]
[1730063201397,210.61513968,177.35,177.32,6.95208066]
[1730063203206,2.8222,177.36,177.32,6.95208066]
[1730063207811,2.8222,177.35,177.32,6.95208066]
[1730063211209,2.822,177.37,177.33,9.77458066]
[1730063211707,2.822,177.37,177.33,6.95208066]
[1730063213411,2.822,177.37,177.33,9.77448066]
[1730063215909,6.95208066,177.34,177.27,2.4152]
[1730063216108,6.95208066,177.33,177.28,10.91208066]
[1730063217510,9.77468066,177.33,177.29,2.8231]
[1730063218017,2.8227,177.32,177.28,13.73528066]
[1730063218514,2.8227,177.32,177.29,2.8231]
[1730063220818,2.8232,177.31,177.28,9.77568066]
[1730063221019,6.95208066,177.33,177.28,9.77568066]
[1730063221417,6.95208066,177.33,177.27,3.96]
[1730063221715,3.96,177.32,177.25,2.824]
[1730063221921,6.95208066,177.28,177.25,2.824]
[1730063222219,6.95208066,177.29,177.25,2.824]
[1730063223416,2.8236,177.28,177.25,2.824]
[1730063223623,2.89227373,177.34,177.2,3.5394]
[1730063223624,2.89227373,177.34,177.27,6.95208066]
[1730063223818,2.89227373,177.34,177.29,6.95208066]
[1730063223819,6.7832,177.31,177.29,6.95208066]
[1730063224018,2.8232,177.31,177.29,6.95208066]
[1730063225324,2.823,177.32,177.29,9.77548066]
[1730063226226,2.8229,177.33,177.29,9.77548066]
[1730063227224,13.73478066,177.34,177.29,9.77548066]
[1730063228724,13.73478066,177.34,177.29,6.95208066]
[1730063228925,13.73478066,177.34,177.3,2.8232]
[1730063234630,3.96,177.34,177.29,6.95208066]
[1730063234828,3.96,177.34,177.31,2.8231]
[1730063235327,9.77468066,177.35,177.31,2.8231]
[1730063235531,6.95208066,177.35,177.32,2.8229]
[1730063235724,2.8223,177.36,177.32,9.77498066]
[1730063235930,2.8223,177.36,177.32,2.8229]
[1730063241437,9.77438066,177.36,177.32,2.8229]
[1730063245750,1.1942,177.4,177.33,6.95208066]
[1730063245949,6.95208066,177.38,177.33,6.95208066]
[1730063246747,2.8222,177.37,177.33,9.77478066]
[1730063253258,9.77428066,177.37,177.33,9.77478066]
[1730063270261,2.8221,177.38,177.36,6.95208066]
[1730063270463,3.96,177.45,177.37,6.95208066]
[1730063270662,6.95208066,177.44,177.4,6.95208066]
[1730063270862,2.8212,177.43,177.4,6.95208066]
[1730063271058,6.95208066,177.44,177.4,6.95208066]
[1730063271464,2.8215,177.42,177.4,6.95208066]
[1730063271669,2.8215,177.42,177.38,6.95208066]
[1730063280482,2.8219,177.39,177.35,2.8224]
[1730063280679,6.95208066,177.4,177.35,6.95208066]
[1730063280872,6.95208066,177.38,177.34,6.95208066]
[1730063281581,23.354539,177.47,177.27,2.8236]
[1730063281582,2.823,177.32,177.27,2.8236]
[1730063282083,2.823,177.32,177.28,6.95208066]
[1730063282380,2.823,177.32,177.29,6.95208066]
[1730063283875,2.8228,177.34,177.3,6.95208066]
[1730063285879,10.91208066,177.36,177.3,6.95208066]
[1730063286071,10.91208066,177.36,177.25,6.2673]
[1730063286072,2.8225,177.35,177.31,9.77518066]
[1730063287184,2.8225,177.35,177.31,6.95208066]
[1730063288090,6.7824,177.36,177.31,9.77508066]
[1730063295186,3.96,177.36,177.31,9.77508066]
[1730063295383,6.95208066,177.33,177.26,4.8392114]
[1730063295587,6.95208066,177.32,177.26,9.77598066]
[1730063295893,3.96,177.36,177.14,3.96]
[1730063295894,6.95208066,177.27,177.14,3.96]
[1730063296094,6.95208066,177.2,177.16,2.4223]
[1730063296294,6.95208066,177.2,177.17,6.25753303]
[1730063296295,2.8253,177.18,177.17,6.25753303]
[1730063296500,6.95208066,177.2,177.17,6.25753303]
[1730063296501,6.95208066,177.2,177.17,1.41251489]
[1730063296701,6.95208066,177.2,177.15,4.84501814]
[1730063296893,9.77708066,177.2,177.16,1.41291993]
[1730063297203,6.95208066,177.19,177.13,6.95208066]
[1730063297387,6.95208066,177.17,177.14,1.41298804]
[1730063297592,10.91208066,177.17,177.11,8.15308066]
[1730063297792,10.91208066,177.17,177.12,1.41303212]
[1730063297991,2.8256,177.16,177.13,1.41303212]
[1730063298291,2.8256,177.16,177.11,8.15308066]
[1730063298486,2.8256,177.16,177.11,10.97928066]
[1730063299497,13.73748066,177.17,177.11,10.97928066]
[1730063300498,6.7854,177.17,177.11,10.97928066]
[1730063300699,6.7854,177.17,177.13,6.95208066]
[1730063302401,3.96,177.17,177.13,6.95208066]
[1730063303706,3.96,177.17,177.13,9.77798066]
[1730063303902,3.96,177.17,177.15,6.95208066]
[1730063304606,2.825,177.2,177.15,6.95208066]
[1730063304607,3.96,177.2,177.15,6.95208066]
[1730063304813,3.96,177.2,177.18,6.95208066]
[1730063309006,3.96,177.2,177.16,9.77748066]
[1730063310409,9.77748066,177.17,177.12,2.8261]
[1730063310613,10.97208066,177.16,177.12,2.8261]
[1730063311002,6.95208066,177.13,176.95,4.02]
[1730063311314,6.95208066,177.11,177.04,6.95208066]
[1730063311510,4.02,177.1,177.06,9.77908066]
[1730063311711,4.02,177.1,177.07,6.95208066]
[1730063312318,4.02,177.1,177.0,4.02]
[1730063312521,4.02,177.1,177.05,6.95208066]
[1730063313317,4.02,177.1,177.06,2.827]
[1730063315523,4.02,177.1,177.07,2.8269]
[1730063318613,4.02,177.1,177.06,2.827]
[1730063319221,4.02,177.1,177.05,6.95208066]
[1730063319416,4.02,177.1,177.07,2.8269]
[1730063328715,6.8465,177.1,177.06,2.827]
[1730063330630,6.8465,177.1,177.05,6.95208066]
[1730063330820,2.8266,177.09,177.0,4.02]
[1730063331120,2.8266,177.09,177.04,6.95208066]
[1730063331322,2.8268,177.08,177.05,2.8271]
[1730063332822,4.02,177.1,177.05,6.95208066]
[1730063333133,2.8268,177.08,177.05,9.77928066]
[1730063334528,2.8271,177.06,177.04,2.8274]
[1730063334729,6.95208066,177.09,177.04,2.8274]
[1730063335432,4.02,177.08,177.04,2.8274]
[1730063335633,6.8469,177.08,177.04,9.77948066]
[1730063335841,6.95208066,177.12,177.07,6.95208066]
[1730063336035,4.02,177.11,177.07,6.95208066]
[1730063336534,2.8267,177.09,177.06,6.95208066]
[1730063336734,2.8267,177.09,177.05,2.8272]
[1730063336735,2.8267,177.09,177.05,9.77928066]
[1730063340441,2.8271,177.06,177.02,2.8276]
[1730063340644,6.95208066,177.04,176.9,4.79999864]
[1730063340837,4.06,177.03,176.98,6.95208066]
[1730063341339,6.8877,177.03,176.99,2.8282]
[1730063342041,2.8278,177.02,176.99,2.8282]
[1730063342237,4.06,177.03,177.0,2.8281]
[1730063343336,2.8275,177.04,177.0,6.95208066]
[1730063343641,13.85948066,177.05,177.0,6.95208066]
[1730063344238,13.85948066,177.05,177.01,2.8278]
[1730063349346,13.85948066,177.05,176.99,2.8282]
[1730063349347,2.8278,177.02,176.99,2.8282]
[1730063349547,6.95208066,177.02,176.96,6.95208066]
[1730063351033,4.08,177.01,176.96,6.95208066]
[1730063351644,2.8281,177.0,176.97,2.8284]
[1730063352345,2.8278,177.02,176.99,2.8281]
[1730063352652,6.9078,177.02,176.99,9.78018066]
[1730063352947,6.9078,177.02,176.99,6.95208066]
[1730063353150,4.08,177.02,176.99,6.95208066]
[1730063353346,4.08,177.02,177.0,2.8279]
[1730063353749,4.08,177.02,176.98,6.95208066]
[1730063354442,4.08,177.02,176.99,2.8281]
[1730063355552,4.08,177.02,176.98,6.95208066]
[1730063355553,6.9078,177.02,176.98,2.8283]
[1730063355753,6.9078,177.02,176.98,6.95208066]
[1730063355944,6.95208066,177.01,176.94,6.95208066]
[1730063356250,2.8283,176.99,176.95,2.8288]
[1730063356452,2.8283,176.99,176.94,6.95208066]
[1730063356841,2.8283,176.99,176.96,2.8287]
[1730063360454,6.95208066,176.98,176.91,1.1972]
[1730063360658,2.8286,176.97,176.94,2.8289]
[1730063361741,2.8288,176.96,176.93,2.8291]
[1730063362857,6.95208066,176.97,176.93,2.8291]
[1730063363251,2.8289,176.95,176.93,2.8291]
[1730063364650,9.78098066,176.95,176.93,2.8291]
[1730063365858,6.95208066,176.95,176.93,2.8291]
[1730063366457,6.95208066,176.95,176.9,9.44828066]
[1730063366458,2.8285,176.98,176.94,6.95208066]
[1730063366662,6.9085,176.98,176.94,6.95208066]
[1730063367159,6.9085,176.98,176.95,2.8288]
[1730063368961,6.95208066,176.97,176.95,2.8288]
[1730063370454,9.78088066,176.96,176.92,2.8292]
[1730063371054,2.8291,176.94,176.9,2.8296]
[1730063371362,4.12,176.93,176.87,6.95208066]
[1730063371554,11.07208066,176.93,176.87,6.95208066]
[1730063372259,6.95208066,176.93,176.87,6.95208066]
[1730063372461,4.12,176.92,176.89,2.8297]
[1730063374261,9.78128066,176.93,176.89,2.8297]
[1730063374457,2.829,176.95,176.91,2.8294]
[1730063374661,4.12,176.94,176.91,2.8294]
[1730063375666,4.12,176.94,176.9,6.95208066]
[1730063376264,11.07208066,176.94,176.88,6.95208066]
[1730063377553,13.90108066,176.94,176.9,2.8295]
[1730063377751,6.95208066,176.92,176.83,4.83968228]
[1730063377955,6.95208066,176.92,176.86,6.95208066]
[1730063378771,6.95208066,176.92,176.9,2.8296]
[1730063378963,6.95208066,176.91,176.85,6.95208066]
[1730063379456,6.95208066,176.91,176.89,2.8297]
[1730063379657,6.95208066,176.91,176.85,6.95208066]
[1730063381160,9.78148066,176.92,176.9,2.8296]
[1730063382766,6.95208066,176.92,176.9,2.8296]
[1730063390275,11.07208066,176.92,176.9,2.8296]
[1730063390972,2.8299,176.89,176.86,2.8302]
[1730063391174,6.95208066,176.88,176.86,2.8302]
[1730063391973,6.95208066,176.88,176.87,2.8301]
[1730063394478,6.95208066,176.88,176.82,8.14098066]
[1730063394681,6.95208066,176.88,176.86,2.8302]
[1730063396282,6.95208066,176.88,176.83,6.95208066]
[1730063396482,9.78218066,176.88,176.85,2.8304]
[1730063399190,9.78218066,176.88,176.84,2.8305]
[1730063399380,9.78218066,176.88,176.83,6.95208066]
[1730063400182,9.78218066,176.88,176.85,2.8304]
[1730063400480,6.95208066,176.88,176.85,2.8304]
[1730063400682,2.8302,176.87,176.85,2.8304]
[1730063401380,2.8305,176.85,176.83,2.8307]
[1730063401583,9.78258066,176.85,176.83,2.8307]
[1730063402083,6.95208066,176.85,176.83,2.8307]
[1730063402275,6.95208066,176.85,176.8,6.95208066]
[1730063402483,6.95208066,176.85,176.84,2.8306]
[1730063405081,6.95208066,176.87,176.81,6.95208066]
[1730063405285,6.95208066,176.87,176.85,2.8304]
[1730063405677,9.78218066,176.87,176.85,2.8304]
[1730063408290,6.95208066,176.87,176.85,2.8304]
[1730063408890,2.8304,176.86,176.84,2.8305]
[1730063409095,6.95208066,176.87,176.84,2.8305]
[1730063409600,2.8303,176.86,176.84,2.8305]
[1730063409892,6.95208066,176.87,176.81,6.95208066]
[1730063410294,9.78228066,176.87,176.84,2.8305]
[1730063413594,6.95208066,176.85,176.84,2.8305]
[1730063415402,6.95208066,176.85,176.8,6.95208066]
[1730063415899,2.3914,176.92,176.77,4.85061486]
[1730063415900,6.95208066,176.81,176.77,4.85061486]
[1730063416090,6.95208066,176.81,176.78,2.8315]
[1730063416699,9.78328066,176.81,176.78,2.8315]
[1730063419206,6.95208066,176.79,176.78,2.8315]
[1730063421114,6.95208066,176.79,176.73,4.85242794]
[1730063421304,6.95208066,176.79,176.77,2.8316]
[1730063422299,6.95208066,176.78,176.77,2.8316]
[1730063423011,6.95208066,176.79,176.74,6.95208066]
[1730063423304,6.95208066,176.79,176.78,2.8314]
[1730063423513,11.07208066,176.81,176.75,6.95208066]
[1730063423814,11.07208066,176.81,176.79,2.8313]
[1730063424108,11.07208066,176.81,176.75,6.95208066]
[1730063424305,4.12,176.81,176.75,6.95208066]
[1730063424614,6.95208066,176.82,176.75,6.95208066]
[1730063424816,11.07208066,176.82,176.75,6.95208066]
[1730063425017,11.07208066,176.82,176.8,2.8311]
[1730063425509,9.78298066,176.82,176.8,2.8311]
[1730063425700,13.90298066,176.82,176.8,2.8311]
[1730063426102,11.07208066,176.82,176.8,2.8311]
[1730063428503,4.12,176.81,176.8,2.8311]
[1730063429416,4.12,176.81,176.78,2.8314]
[1730063429706,4.12,176.81,176.73,1.1899]
[1730063429707,2.8317,176.77,176.73,1.1899]
[1730063429904,2.8317,176.77,176.74,2.8321]
[1730063429905,12.75624978,176.76,176.74,2.8321]
[1730063430110,12.75624978,176.75,176.74,2.8321]
[1730063430507,4.90624991,176.75,176.73,2.8323]
[1730063430711,4.90624991,176.74,176.73,2.8323]
[1730063430911,11.85833057,176.74,176.71,2.4854]
[1730063431111,4.90624991,176.73,176.71,2.4854]
[1730063431415,4.61090443,176.72,176.71,2.4854]
[1730063431811,4.61090443,176.72,176.71,5.3181]
[1730063432810,4.61090443,176.72,176.71,2.8327]
[1730063435417,9.78428066,176.75,176.72,2.8324]
[1730063435620,4.60591843,176.74,176.72,2.8324]
[1730063435815,4.60591843,176.73,176.65,4.12]
[1730063436015,6.95208066,176.73,176.65,4.12]
[1730063436216,6.95208066,176.73,176.68,6.95208066]
[1730063437119,4.60589639,176.72,176.71,2.8326]
[1730063437422,6.95208066,176.73,176.71,2.8326]
[1730063437821,6.95208066,176.73,176.68,6.95208066]
[1730063438023,6.95208066,176.73,176.72,2.8325]
[1730063438225,11.55755074,176.73,176.72,2.8325]
[1730063438621,4.60547008,176.73,176.72,2.8325]
[1730063441126,4.60590788,176.73,176.72,2.8325]
[1730063441925,6.95208066,176.74,176.72,2.8325]
[1730063442130,4.60521452,176.73,176.72,2.8325]
[1730063443627,6.95208066,176.74,176.72,2.8325]
[1730063443933,4.60397909,176.73,176.72,2.8325]
[1730063444425,6.95208066,176.74,176.72,2.8325]
[1730063444625,4.60347987,176.73,176.72,2.8325]
[1730063444930,6.95208066,176.74,176.72,2.8325]
[1730063445231,6.95208066,176.73,176.65,4.12]
[1730063445534,6.95208066,176.73,176.7,2.8327]
[1730063445535,6.95208066,176.71,176.7,2.8327]
[1730063445736,6.95208066,176.71,176.63,2.3415]
[1730063446036,6.95208066,176.71,176.65,6.95208066]
[1730063447328,9.78478066,176.71,176.69,2.833]
[1730063448134,4.12,176.73,176.65,6.95208066]
[1730063448327,14.38593663,176.72,176.7,2.8329]
[1730063448633,9.78458066,176.72,176.7,2.8329]
[1730063451340,4.12,176.73,176.7,2.8329]
[1730063451544,4.60093279,176.72,176.7,2.8329]
[1730063451840,6.95208066,176.72,176.7,2.8329]
[1730063455535,6.95208066,176.71,176.7,2.8329]
[1730063455739,11.55176221,176.71,176.7,2.8329]
[1730063457238,4.59968155,176.71,176.7,2.8329]
[1730063458041,4.12,176.72,176.67,6.95208066]
[1730063458333,11.07208066,176.73,176.71,2.8327]
[1730063458538,4.60125947,176.72,176.71,2.8327]
[1730063460130,4.60125947,176.72,176.67,6.95208066]
[1730063460335,11.55334013,176.71,176.69,2.8329]
[1730063460642,4.60125947,176.7,176.69,2.8329]
[1730063463033,3.6583,176.78,176.63,6.4215]
[1730063463239,6.95208066,176.74,176.68,6.95208066]
[1730063463746,6.95208066,176.72,176.71,2.8326]
[1730063468246,4.08,176.77,176.67,6.95208066]
[1730063468447,4.08,176.77,176.63,6.4215]
[1730063468448,6.95208066,176.74,176.69,2.8329]
[1730063468653,6.95208066,176.74,176.68,6.95208066]
[1730063468951,6.95208066,176.72,176.7,2.8328]
[1730063470247,6.95208066,176.72,176.71,2.8327]